Cogmind - Beta 13 @@@ ROGUE MODE // 2024.04.17 @ 19:38:03 Player: Person Guy Result: Destroyed by B-99 Colossus with Linear Accelerator Performance ------------- Evolutions (9) 4500 Regions Visited (21) 4200 Robots Destroyed (237) 1185 Value Destroyed (12207) 12207 Prototype IDs (26) 520 Alien Tech Used (0) 0 Bonus (6046) 6046 TOTAL SCORE: 28658 Bonus ------- High Alert Combat Kills 1035 Follower Combat Kills 1372 Entered Garrisons 800 Used RIF Installer 2500 Entered DSFs 500 Aligned with FarCom 300 Friendly Fire -461 Cogmind --------- Core Integrity 0/1600 Matter 241/300 Energy 99/100 System Corruption 17% Temperature Cool (0) Movement Core (50) Location -1/Access Parts ------- > --- POWER (2) -------- (None) > --- PROPULSION (4) --- (None) > --- UTILITY (15) ----- Graphene Brace Relay Coupler [NC] (39) Relay Coupler [NC] (25) > --- WEAPON (4) ------- (None) > --- INVENTORY (5) ---- Relay Coupler [NC] (44) Relay Coupler [Heavy] (13) Dispersion Rifle Peak State ------------ > --- POWER ------------ Micro Antimatter Reactor Quantum Reactor > --- PROPULSION ------- Biometal Leg Biometal Leg Biometal Leg Centrium Leg > --- UTILITY ---------- Advanced Cryofiber Web Advanced Heat Sink Advanced Cooling System Large Storage Unit Advanced Gravity Neutralizer Advanced Signal Interpreter Advanced Target Analyzer Advanced Target Analyzer Graphene Brace Advanced Hacking Suite Relay Coupler [Grunt] Relay Coupler [Sentry] > --- WEAPON ----------- Gamma Rifle Gamma Rifle Linear Accelerator Advanced Remote Datajack > --- INVENTORY -------- Micro Antimatter Reactor Micro Antimatter Reactor Centrium Leg Advanced Heat Sink Advanced Gravity Neutralizer Relay Coupler [NC] Relay Coupler [NC] Relay Coupler [NC] Relay Coupler [Grunt] Relay Coupler [Heavy] Gamma Rifle Heavy Machine Gun KE Penetrator KE Penetrator Linear Accelerator [Rating: 156] Favorites ----------- Power Quantum Reactor Engine Improved Deuterium Engine Power Core Light Nuclear Core Reactor Quantum Reactor Propulsion Improved Titanium Leg Treads Light Treads Leg Improved Titanium Leg Flight Unit Impulse Thruster Utility Large Storage Unit Device Advanced Heat Sink Storage Large Storage Unit Processor Advanced Signal Interpreter Hackware Relay Coupler [Grunt] Protection Improved Light Armor Plating Weapon Antimatter Cannon Energy Gun Quantum Rifle Energy Cannon Heavy Particle Cannon Ballistic Gun Assault Rifle Ballistic Cannon Antimatter Cannon Launcher Long-range Missile Launcher Special Weapon Advanced Remote Datajack Build | -11 -10 -10 -9 -9 -9 -8 -8 -7 -7 -7 -6 -6 -5 -4 -4 -4 -4 -3 -2 -2 -1 ------- Run | Yrd Mat Min Mat Min Exi Min Mat Fac Gar Fac Fac Gar Fac Fac Gar Fac DSF Res Res Gar Acc Slots Evolved 18 | . . . 2 . . . 2 2 . . 2 . 2 2 . . . 2 2 . 2 Power 1 | . . . . . . . . . . . 1 . . . . . . . . . . Propulsion 2 | . . . 1 . . . . 1 . . . . . . . . . . . . . Utility 13 | . . . 1 . . . 1 1 . . 1 . 1 2 . . . 2 2 . 2 Weapon 2 | . . . . . . . 1 . . . . . 1 . . . . . . . . Parts Attached 249 | 6 4 6 5 3 1 . 16 8 11 14 34 11 17 5 12 . 9 19 57 . 11 Power 25 | 1 2 1 . . . . 1 . 1 . 5 1 1 1 . . . 2 8 . 1 Engine 9 | 1 2 . . . . . 1 . . . 5 . . . . . . . . . . Core 2 | . . 1 . . . . . . . . . . . 1 . . . . . . . Reactor 14 | . . . . . . . . . 1 . . 1 1 . . . . 2 8 . 1 Propulsion 46 | 2 . . 1 . . . 6 4 3 2 5 4 1 . 3 . 3 1 10 . 1 Treads 17 | 2 . . 1 . . . . . . . . 4 1 . 3 . 3 1 2 . . Leg 28 | . . . . . . . 6 4 3 2 5 . . . . . . . 8 . . Wheel . | . . . . . . . . . . . . . . . . . . . . . . Hover . | . . . . . . . . . . . . . . . . . . . . . . Flight 1 | . . . . . . . . . . . . . . . . . . . . . 1 Utility 81 | 1 2 3 1 . 1 . 4 2 3 6 11 4 7 3 4 . 1 11 12 . 5 Device 40 | . . 3 . . 1 . 1 . 3 2 5 3 3 1 2 . . 8 7 . 1 Storage 3 | 1 1 . . . . . . . . 1 . . . . . . . . . . . Processor 7 | . . . . . . . . 1 . 1 1 . . . . . . 2 2 . . Hackware 15 | . . . . . . . . . . 2 2 . 3 1 . . . 1 2 . 4 Protection 16 | . 1 . 1 . . . 3 1 . . 3 1 1 1 2 . 1 . 1 . . Artifact . | . . . . . . . . . . . . . . . . . . . . . . Weapon 97 | 2 . 2 3 3 . . 5 2 4 6 13 2 8 1 5 . 5 5 27 . 4 Energy Gun 22 | . . 1 1 . . . . . . 1 3 . 1 . 1 . . 1 10 . 3 Energy Cannon 17 | . . . 1 . . . 2 2 1 . 3 1 1 . 1 . 1 1 2 . 1 Ballistic Gun 16 | 2 . 1 1 2 . . . . 1 2 2 . . . . . . 1 4 . . Ballistic Cannon 25 | . . . . . . . 2 . 2 1 3 . 4 1 1 . 4 1 6 . . Launcher 3 | . . . . 1 . . 1 . . . . . . . 1 . . . . . . Special Weapon 14 | . . . . . . . . . . 2 2 1 2 . 1 . . 1 5 . . Impact Weapon . | . . . . . . . . . . . . . . . . . . . . . . Slashing Weapon . | . . . . . . . . . . . . . . . . . . . . . . Piercing Weapon . | . . . . . . . . . . . . . . . . . . . . . . Special Melee Weapon . | . . . . . . . . . . . . . . . . . . . . . . Unidentified Prototypes 12 | . . 2 1 . 1 . . . . . 3 . . 1 . . . 2 2 . . Parts Lost 63 | . 1 1 . 2 . . 6 . 1 1 . . . . 1 . . 1 26 15 8 Power 10 | . 1 . . . . . 1 . . . . . . . . . . . 5 2 1 Propulsion 12 | . . . . 1 . . 1 . . . . . . . . . . . 5 4 1 Utility 22 | . . . . 1 . . 1 . 1 1 . . . . 1 . . 1 6 5 5 Weapon 19 | . . 1 . . . . 3 . . . . . . . . . . . 10 4 1 Highest Loss Streak 15 | . 1 1 . 2 . . 2 . 1 1 . . . . 1 . . 1 15 15 4 To Critical Strikes . | . . . . . . . . . . . . . . . . . . . . . . Average Slot Usage (%) 87 | . 96 94 85 80 77 77 88 96 94 92 92 90 90 87 93 94 91 82 83 66 24 Engine 4 | . 12 13 . . . . 5 7 3 . 11 9 4 . . . . . . . . Core 1 | . . . 11 11 11 11 3 . . . . . . 4 5 5 5 . . . . Reactor 3 | . . . . . . . . . 3 7 1 2 5 5 5 5 5 8 7 5 . Treads 9 | . 28 28 28 23 22 22 3 . . . . 9 17 15 14 15 15 10 6 . . Leg 11 | . . . . . . . 20 30 29 29 25 12 . . . . . . 7 11 . Device 11 | . . . 11 11 11 11 8 7 7 12 8 8 13 19 20 21 18 18 19 16 4 Storage 6 | . 14 14 11 11 11 11 9 7 7 7 6 6 5 5 5 5 5 4 4 2 . Processor 3 | . . . . . . . . 4 2 2 3 6 5 5 5 5 5 6 10 12 6 Hackware 4 | . . . . . . . . . . 4 4 4 . 5 10 10 10 9 8 7 12 Protection 6 | . 12 8 2 1 . . 9 14 14 2 7 6 10 5 5 5 5 2 . . . Energy Gun 2 | . . . 9 . . . . . . 2 3 . 1 5 7 10 8 4 3 7 . Energy Cannon 5 | . . . 1 11 11 11 11 14 12 7 1 5 4 . 1 . 1 1 2 . . Ballistic Gun 5 | . 28 27 11 10 11 11 3 . 3 6 5 . . . . . . 2 2 . . Ballistic Cannon 6 | . . . . . . . 11 7 6 4 7 13 16 15 9 10 9 8 6 . . Naked Turns . | . . . . . . . . . . . . . . . . . . . . . . Heaviest Build 126 | 14 30 30 36 36 35 35 51 53 71 60 79 86 109 99 103 94 124 126 119 71 15 Greatest Support 135 | 40 40 40 60 60 40 40 40 75 80 80 80 115 122 122 132 132 135 130 132 113 7 Greatest Overweight (x) 4 | . . . . . . . 1 1 . . 1 1 . . 1 . . . 1 . 4 Average Overweight (x) . | . . . . . . . . . . . . . . . . . . . . . . Largest Inventory Capacity 15 | 8 15 15 15 15 15 15 15 15 15 15 15 15 15 15 15 15 15 15 15 15 5 Average Capacity 14 | 5 9 15 15 15 15 15 15 15 15 15 15 15 15 15 15 15 15 15 15 10 5 Most Carried 15 | 5 11 14 14 15 15 15 15 14 15 15 15 15 15 15 15 15 15 15 15 6 5 Average Carried 12 | 3 6 11 10 13 14 14 11 12 12 13 14 14 13 13 13 15 14 14 12 5 4 Final Capacity 15 | 8 15 15 15 15 15 15 15 15 15 15 15 15 15 15 15 15 15 15 15 5 5 Final Carried 15 | 3 10 9 13 14 14 15 13 13 14 15 14 15 14 12 15 15 15 15 6 5 3 Class Distribution -------------------- 28% | Bothacker-Tank 18% | Bothacker-Skirmisher 17% | Mutant 15% | Tank 10% | Bothacker-Gunner 4% | Skirmisher 4% | Scavenger-Mutant Dominant Class ---------------- Mutant | -10/Materials Mutant | -10/Mines Scavenger-Mutant | -9/Materials Mutant | -9/Mines Mutant | -9/Exiles Mutant | -8/Mines Skirmisher | -8/Materials Tank | -7/Factory Tank | -7/Garrison Bothacker-Skirmisher | -7/Factory Bothacker-Skirmisher | -6/Factory Bothacker-Skirmisher | -6/Garrison Bothacker-Tank | -5/Factory Bothacker-Tank | -4/Factory Bothacker-Tank | -4/Garrison Bothacker-Tank | -4/Factory Bothacker-Tank | -4/DSF Bothacker-Tank | -3/Research Bothacker-Gunner | -2/Research Scavenger-Gunner | -2/Garrison Mutant | -1/Access Resources | -11 -10 -10 -9 -9 -9 -8 -8 -7 -7 -7 -6 -6 -5 -4 -4 -4 -4 -3 -2 -2 -1 ----------- Run | Yrd Mat Min Mat Min Exi Min Mat Fac Gar Fac Fac Gar Fac Fac Gar Fac DSF Res Res Gar Acc Matter Collected 7885 | 219 396 52 102 79 . 25 492 173 462 428 977 461 595 77 788 . 122 928 1495 . 14 Remotely . | . . . . . . . . . . . . . . . . . . . . . . Salvage Created 9362 | . 497 106 168 78 . . 792 . 966 854 749 303 726 89 831 . 64 1090 1958 75 16 Parts 440 | . 25 9 11 13 . . 40 . 45 45 35 12 27 2 29 . 4 52 79 6 6 Haulers Intercepted 9 | . . . 3 . . . 1 . . . 1 . 1 . . . . 2 1 . . Recyclers Shooed 6 | . . . . . . . 1 . . 1 2 . 1 . . . . . 1 . . Parts Field Recycled . | . . . . . . . . . . . . . . . . . . . . . . Retrieved Matter . | . . . . . . . . . . . . . . . . . . . . . . Parts Self-Destructed . | . . . . . . . . . . . . . . . . . . . . . . Prevented . | . . . . . . . . . . . . . . . . . . . . . . Kills | -11 -10 -10 -9 -9 -9 -8 -8 -7 -7 -7 -6 -6 -5 -4 -4 -4 -4 -3 -2 -2 -1 ------- Run | Yrd Mat Min Mat Min Exi Min Mat Fac Gar Fac Fac Gar Fac Fac Gar Fac DSF Res Res Gar Acc Combat Hostiles Destroyed 194 | . 11 3 1 8 . . 23 . 25 15 15 10 9 3 23 . 1 19 26 2 . Guns 56 | . 11 3 1 2 . . 3 . 3 4 6 . 1 . 9 . . 3 8 2 . Cannons 125 | . . . . 3 . . 18 . 21 11 9 10 8 3 10 . 1 16 15 . . AOE 8 | . . . . 3 . . 1 . . . . . . . 4 . . . . . . Classes Destroyed 20 | . 3 2 2 . . . 2 . 3 2 3 1 1 . 1 . . . . . . Worker 8 | . 1 . . . . . 1 . . 2 2 . 1 . . . . . 1 . . Builder 8 | . . . . . . . 1 . . 1 1 . . . . . . 2 2 . 1 Tunneler 1 | . . . . . . . . . . . 1 . . . . . . . . . . Hauler 9 | . . . 3 . . . 1 . . . 1 . 1 . . . . 2 1 . . Recycler 7 | . . 1 . . . . 1 . . . 2 . 2 . . . . . 1 . . Mechanic 2 | . . . . . . . . . . 1 . . 1 . . . . . . . . Operator 5 | . 2 . . . . . 1 . . . . . 1 . . . . . 1 . . Watcher 1 | . . . . . . . . . . . 1 . . . . . . . . . . Swarmer 47 | . . 3 . 8 . . 7 . 4 2 7 3 . . 6 . . . 5 2 . Cutter 2 | . . . . . . . . . . . . 2 . . . . . . . . . Saboteur 3 | . . . . . . . . . . . . . . . 3 . . . . . . Grunt 74 | . 11 . . . . . 13 . 13 7 3 5 3 2 7 . 1 6 3 . . Brawler 3 | . . . . . . . . . . 2 . . . 1 . . . . . . . Duelist 3 | . . . . . . . . . 1 2 . . . . . . . . . . . Sentry 10 | . . . 1 . . . 2 . 1 1 1 . . . 3 . . 1 . . . Specialist 3 | . . . . . . . . . 3 . . . . . . . . . . . . Hunter 16 | . . . . . . . 1 . . . . 1 3 . 3 . . . 8 . . Programmer 31 | . . . . . . . . . 3 2 3 . 2 . . . . 11 10 . . Heavy 1 | . . . . . . . . . . . . . 1 . . . . . . . . Behemoth 3 | . . . . . . . . . . . 1 . . . 1 . . 1 . . . Best Kill Streak 11 | . 3 3 1 4 . . 7 . 4 6 4 3 4 3 11 . 1 4 5 2 1 Combat Bots Only 11 | . 2 3 1 4 . . 6 . 4 4 4 3 2 3 11 . 1 4 5 2 . Max Kills in Single Turn 3 | . 1 1 1 3 . . 3 . 1 2 3 1 2 1 3 . 1 2 2 1 1 Gunslinging . | . . . . . . . . . . . . . . . . . . . . . . Exploded 3 | . . . . 3 . . 1 . . . . . . . 2 . . . . . . Melee . | . . . . . . . . . . . . . . . . . . . . . . Uniques/NPCs Destroyed . | . . . . . . . . . . . . . . . . . . . . . . Combat | -11 -10 -10 -9 -9 -9 -8 -8 -7 -7 -7 -6 -6 -5 -4 -4 -4 -4 -3 -2 -2 -1 -------- Run | Yrd Mat Min Mat Min Exi Min Mat Fac Gar Fac Fac Gar Fac Fac Gar Fac DSF Res Res Gar Acc Hostile Shots Fired 1682 | . 53 11 4 41 . . 136 . 95 126 128 83 90 17 104 . . 118 364 150 162 Missed 551 | . 11 4 2 13 . . 38 . 31 58 44 33 27 4 22 . . 34 107 60 63 Damage Taken 21719 | . 536 128 27 250 . . 1197 . 935 906 1020 625 1388 313 1890 . 13 2052 6013 2079 2347 Core 3891 | . 79 35 . 20 . . 142 . 91 112 56 53 143 18 185 . 13 12 468 842 1622 Absorbed by Shields 680 | . . . . . . . . . . . 196 234 250 . . . . . . . . Reduced by Siege Mode 120 | . . . . . . . . . . . . . . . 120 . . . . . . Redirected to Shielding 45 | . 42 3 . . . . . . . . . . . . . . . . . . . Regen/Repaired (Parts) 120 | . . . . . . . . 120 . . . . . . . . . . . . . Core Remaining (%) 75 | 100 . 54 . . . 95 74 . . 71 . 87 85 . . . 81 99 . 9 . Volleys Fired 685 | . 57 5 22 18 . . 71 . 85 64 51 48 32 6 66 . 2 52 93 5 8 Largest 4 | . 2 2 2 2 . . 3 . 3 3 3 3 4 4 4 . 4 4 4 3 3 Hottest 387 | . 40 40 85 108 . . 185 . 184 183 158 178 277 234 284 . 339 339 387 238 264 Shots Fired 1759 | . 114 10 43 36 . . 186 . 187 153 144 96 99 24 168 . 8 195 270 12 14 Gun 685 | . 114 10 43 14 . . 17 . 20 79 84 . 7 6 70 . 2 73 124 12 10 Cannon 1018 | . . . . 18 . . 167 . 167 64 56 94 86 18 84 . 6 119 135 . 4 Launcher 18 | . . . . 4 . . 2 . . . . . . . 12 . . . . . . Special 38 | . . . . . . . . . . 10 4 2 6 . 2 . . 3 11 . . Kinetic 929 | . 114 10 22 14 . . 116 . 61 61 102 50 60 18 61 . 4 125 111 . . Thermal 715 | . . . 21 18 . . 68 . 126 82 38 44 33 6 93 . 4 67 96 5 14 Explosive 18 | . . . . 4 . . 2 . . . . . . . 12 . . . . . . Electromagnetic 59 | . . . . . . . . . . . . . . . . . . . 52 7 . Robot Hit Streak 25 | . 8 2 9 3 . . 13 . 9 7 13 12 4 10 25 . 2 14 16 2 1 Robot Miss Streak 8 | . 5 2 5 6 . . 5 . 8 5 7 5 5 1 4 . 2 3 5 4 4 Penetration Max 1 | . . . . . . . . . 1 1 1 . . . . . . 1 1 . . Secondary Targets 2 | . 2 . . . . . . . . . . . . . . . . . . . . Max Gunslinging Chain 1 | . 1 . . . . . . . . . . . . . . . . . . . . Shots Hit Robots 987 | . 70 3 28 13 . . 117 . 89 88 108 35 44 16 85 . 4 123 156 4 4 Core Hits 484 | 1 29 3 8 8 . . 50 . 61 43 89 16 24 7 52 . 2 34 51 4 2 Critical Kills 9 | . . . . . . . 1 . 3 2 . . . . . . . . 3 . . Critical Parts Destroyed 6 | . 1 . . . . . . . . . 1 . . . . . . 2 1 . 1 Critical Strikes 61 | . 1 . . . . . 3 . 3 2 8 . 3 . 5 . . 9 25 1 1 Burn 6 | . . . . . . . . . . . 1 . . . 1 . . . 4 . . Meltdown 3 | . . . . . . . 1 . 1 . . . . . . . . . 1 . . Destroy 12 | . 1 . . . . . . . 2 2 1 . . . . . . 2 3 . 1 Blast 35 | . . . . . . . 2 . . . 6 . 3 . 4 . . 7 13 . . Corrupt 5 | . . . . . . . . . . . . . . . . . . . 4 1 . Melee Attacks . | . . . . . . . . . . . . . . . . . . . . . . Impact . | . . . . . . . . . . . . . . . . . . . . . . Slashing . | . . . . . . . . . . . . . . . . . . . . . . Piercing . | . . . . . . . . . . . . . . . . . . . . . . Sneak Attacks . | . . . . . . . . . . . . . . . . . . . . . . Combat Hostiles . | . . . . . . . . . . . . . . . . . . . . . . Follow-up Attacks . | . . . . . . . . . . . . . . . . . . . . . . Damage Inflicted 30223 | 5 914 59 327 427 . . 2848 . 2299 2206 2852 1412 1747 716 3321 . 157 5047 5591 100 195 Guns 9543 | . 910 51 327 83 . . 208 . 336 1017 1310 . 158 116 1021 . . 1562 2245 100 99 Cannons 18616 | . . . . 150 . . 2331 . 1963 1186 1123 1412 1499 415 1535 . 157 3471 3323 . 51 Explosions 1952 | . . . . 184 . . 309 . . . 419 . 90 185 765 . . . . . . Melee . | . . . . . . . . . . . . . . . . . . . . . . Ramming 112 | 5 4 8 . 10 . . . . . 3 . . . . . . . 14 23 . 45 Kinetic 15477 | . 910 51 113 83 . . 1389 . 874 783 1912 952 965 415 1082 . 117 3322 2509 . . Thermal 12248 | . . . 214 150 . . 1150 . 1425 1420 940 460 782 116 1474 . 40 1711 2162 54 150 Explosive 1443 | . . . . 184 . . 309 . . . . . . 185 765 . . . . . . Electromagnetic 943 | . . . . . . . . . . . . . . . . . . . 897 46 . Impact . | . . . . . . . . . . . . . . . . . . . . . . Slashing . | . . . . . . . . . . . . . . . . . . . . . . Piercing . | . . . . . . . . . . . . . . . . . . . . . . Highest Corruption 25 | . . . . . . . . . . 2 1 1 1 . . . . 9 24 25 17 Average Corruption 5 | . . . . . . . . . . 1 1 1 1 . . . . 6 11 24 8 Corruption Purged . | . . . . . . . . . . . . . . . . . . . . . . Corruption Blocked . | . . . . . . . . . . . . . . . . . . . . . . Effects 89 | . . . . . . . . . . 6 . 11 2 . . . . 29 20 10 11 Message Errors 22 | . . . . . . . . . . 1 . 2 . . . . . 9 4 2 4 Matter Fused 24 | . . . . . . . . . . . . 4 1 . . . . 7 8 2 2 Heat Flow Errors 6 | . . . . . . . . . . . . 1 1 . . . . 2 1 . 1 Energy Discharges 8 | . . . . . . . . . . 2 . 1 . . . . . 3 1 . 1 Parts Rejected 3 | . . . . . . . . . . . . . . . . . . 2 . 1 . Parts Fused 1 | . . . . . . . . . . . . 1 . . . . . . . . . Data Loss (minor) 10 | . . . . . . . . . . 2 . 1 . . . . . 3 2 1 1 Data Loss (major) 3 | . . . . . . . . . . . . 1 . . . . . . 1 1 . Misfires 2 | . . . . . . . . . . 1 . . . . . . . 1 . . . Alerts 1 | . . . . . . . . . . . . . . . . . . . . . 1 Misdirections 5 | . . . . . . . . . . . . . . . . . . . 1 3 1 Weapon Failures 4 | . . . . . . . . . . . . . . . . . . 2 2 . . Overload Shots . | . . . . . . . . . . . . . . . . . . . . . . Overflow Damage 635 | . . . . 5 . . 25 . 2 8 142 14 55 . 13 . . 233 138 . . Projectiles 466 | . . . . 5 . . 25 . 2 8 . 14 28 . 13 . . 233 138 . . Explosions 169 | . . . . . . . . . . . 142 . 27 . . . . . . . . Melee . | . . . . . . . . . . . . . . . . . . . . . . Knockbacks 97 | . . . . . . . 17 . 15 . 14 7 . 2 8 . 2 16 16 . . Impact . | . . . . . . . . . . . . . . . . . . . . . . Kinetic 94 | . . . . . . . 17 . 15 . 12 7 . 2 7 . 2 16 16 . . Secondary 3 | . . . . . . . . . . . 2 . . . 1 . . . . . . Self-Inflicted Damage 115 | . . . . 22 . . . . . . . . 26 . 46 . . . . . 21 Shots 3 | . . . . 1 . . . . . . . . 1 . 1 . . . . . . Rammed 12 | 2 1 1 . 1 . . . . . . . . . . . . . 1 . . 6 Targets Rammed 17 | 2 1 2 . 1 . . . . . 1 . . . . . . . 2 2 . 6 Kicked 3 | . . . . . . . . . . 1 . . . . . . . . 2 . . Crushed 2 | . . 1 . . . . . . . . . . . . . . . 1 . . . Highest Temperature 422 | . 3 . 28 60 . . 302 . 234 198 199 209 422 31 317 . 129 395 312 . 270 Average Temperature 87 | . 1 . 12 29 . . 82 . 61 83 93 62 136 20 85 . 81 117 128 . 104 Received Heat Transfer 2477 | . 300 . 9 . . . 423 . 222 213 168 214 61 45 174 . 6 237 180 108 117 Effects 6 | . . . . . . . 1 . . . . . 3 . . . . . . . 2 Shutdowns 1 | . . . . . . . . . . . . . 1 . . . . . . . . Energy Bleed 1 | . . . . . . . 1 . . . . . . . . . . . . . . Interference 4 | . . . . . . . . . . . . . 2 . . . . . . . 2 Siege Activations 2 | . . . . . . . . . . . . . . . 1 . . 1 . . . Total Turns 74 | . . . . . . . . . . . . . . . 58 . . 16 . . . Longest Duration 58 | . . . . . . . . . . . . . . . 58 . . 16 . . . Robots Corrupted 2 | . . . . . . . . . . . . . . . . . . . 2 . . Combat Hostiles 1 | . . . . . . . . . . . . . . . . . . . 1 . . Parts Fried 4 | . . . . . . . . . . . . . . . . . . . 4 . . Impact Corruptions . | . . . . . . . . . . . . . . . . . . . . . . Robots Melted 4 | . . . . . . . 1 . 1 . . . . . . . . . 2 . . Combat Hostiles 4 | . . . . . . . 1 . 1 . . . . . . . . . 2 . . Parts Melted 26 | . . . 1 . . . 2 . 4 3 . . . . 3 . . 4 9 . . Heat Transferred 15746 | . . . 518 222 . . 1702 . 1961 1743 1450 555 840 148 1924 . 37 1776 2648 74 148 Parts Sabotaged . | . . . . . . . . . . . . . . . . . . . . . . Parts Stolen . | . . . . . . . . . . . . . . . . . . . . . . Parts Stripped . | . . . . . . . . . . . . . . . . . . . . . . Power Chain Reactions . | . . . . . . . . . . . . . . . . . . . . . . Alert | -11 -10 -10 -9 -9 -9 -8 -8 -7 -7 -7 -6 -6 -5 -4 -4 -4 -4 -3 -2 -2 -1 ------- Run | Yrd Mat Min Mat Min Exi Min Mat Fac Gar Fac Fac Gar Fac Fac Gar Fac DSF Res Res Gar Acc Peak Influence 1494 | . 217 135 166 208 . . 476 58 1494 814 336 880 544 324 1017 533 557 312 231 56 222 Initial 784 | . . 60 . 30 . . . 28 9 784 172 132 462 216 226 533 373 312 38 54 32 Average 296 | . 82 68 70 124 . . 174 30 735 523 193 433 404 284 613 533 447 98 101 36 83 Maximum Alert Level 4 | . 1 . . 1 . . 2 . 4 3 1 3 2 1 3 2 2 1 1 . 1 Low Security (%) 52 | 100 97 100 100 57 . 100 62 100 12 . 68 17 . . . . . 91 95 100 94 Level 1 21 | . 2 . . 42 . . 26 . 19 47 31 27 28 100 23 . 35 8 4 . 5 Level 2 13 | . . . . . . . 11 . 12 20 . 30 71 . 32 100 64 . . . . Level 3 9 | . . . . . . . . . 22 32 . 24 . . 43 . . . . . . Level 4 3 | . . . . . . . . . 31 . . . . . . . . . . . . Level 5 . | . . . . . . . . . . . . . . . . . . . . . . High Security . | . . . . . . . . . . . . . . . . . . . . . . Max Security . | . . . . . . . . . . . . . . . . . . . . . . Sterilizations 1 | . . . . . . . . . . . . . . . . . 1 . . . . Squads Dispatched 49 | . 3 . 2 . . . 3 . . 6 8 . 6 1 . . 1 8 8 . 3 Investigation 8 | . 1 . 1 . . . 1 . . 1 2 . . . . . . . 1 . 1 Extermination 15 | . . . . . . . . . . 1 4 . 1 1 . . . 3 4 . 1 Reinforcement 20 | . 2 . 1 . . . 2 . . 2 2 . 5 . . . 1 2 2 . 1 Assault 2 | . . . . . . . . . . 2 . . . . . . . . . . . Garrison 4 | . . . . . . . . . . . . . . . . . . 3 1 . . Intercept . | . . . . . . . . . . . . . . . . . . . . . . Searches Triggered . | . . . . . . . . . . . . . . . . . . . . . . Construction Impeded 4 | . . . . . . . 1 . . . . . 2 . . . . . 1 . . Haulers Reinforced 2 | . . . . . . . . . . . . . 1 . . . . . 1 . . Active Scanning Responses . | . . . . . . . . . . . . . . . . . . . . . . Cargo Convoy Interrupts . | . . . . . . . . . . . . . . . . . . . . . . Stealth | -11 -10 -10 -9 -9 -9 -8 -8 -7 -7 -7 -6 -6 -5 -4 -4 -4 -4 -3 -2 -2 -1 --------- Run | Yrd Mat Min Mat Min Exi Min Mat Fac Gar Fac Fac Gar Fac Fac Gar Fac DSF Res Res Gar Acc Distress Signals 13 | . . . 1 . . . 4 . . 3 . . 1 . . . . . 2 . 2 Communications Jammed . | . . . . . . . . . . . . . . . . . . . . . . Distress Signals . | . . . . . . . . . . . . . . . . . . . . . . Times Spotted 388 | . 28 3 8 11 . . 37 2 33 45 27 22 21 3 28 . 6 23 36 28 27 Peak Tracking Total 30 | . 4 3 3 4 . . 10 2 8 7 5 6 4 3 8 . 5 4 6 30 8 Tactical Retreats 19 | . . . . . . . 3 . 4 . . . 1 . 1 . . 1 . 2 7 Traps | -11 -10 -10 -9 -9 -9 -8 -8 -7 -7 -7 -6 -6 -5 -4 -4 -4 -4 -3 -2 -2 -1 ------- Run | Yrd Mat Min Mat Min Exi Min Mat Fac Gar Fac Fac Gar Fac Fac Gar Fac DSF Res Res Gar Acc Traps Triggered 14 | . 1 1 . . . . 1 . 4 . 1 3 1 1 1 . . . . . . Indirectly . | . . . . . . . . . . . . . . . . . . . . . . Trap Hack Attempts . | . . . . . . . . . . . . . . . . . . . . . . Triggered . | . . . . . . . . . . . . . . . . . . . . . . Disarmed . | . . . . . . . . . . . . . . . . . . . . . . Reprogrammed . | . . . . . . . . . . . . . . . . . . . . . . Reused 3 | . . . . . . . . . 3 . . . . . . . . . . . . Traps Extracted . | . . . . . . . . . . . . . . . . . . . . . . Installed 4 | . . . . . . . . . 4 . . . . . . . . . . . . Triggered 3 | . . . . . . . . . 3 . . . . . . . . . . . . Most Traps Carried 4 | . . . . . . . . . 4 . . . . . . . . . . . . Machines | -11 -10 -10 -9 -9 -9 -8 -8 -7 -7 -7 -6 -6 -5 -4 -4 -4 -4 -3 -2 -2 -1 ---------- Run | Yrd Mat Min Mat Min Exi Min Mat Fac Gar Fac Fac Gar Fac Fac Gar Fac DSF Res Res Gar Acc Machines Disabled 35 | . 1 . 2 1 . . 3 . 9 1 4 2 3 2 3 . 1 . 3 . . Max in Single Turn 3 | . 1 . 1 1 . . 1 . 1 1 2 1 3 1 1 . 1 . 1 . . Garrison Access 1 | . . . . . . . . . . 1 . . . . . . . . . . . Garrison Relay 9 | . . . . . . . . . 5 . . 2 . . 2 . . . . . . Phase Generator 1 | . . . . . . . . . . . . . . . . . . . . 1 . Machines Repaired . | . . . . . . . . . . . . . . . . . . . . . . Machines Dismantled . | . . . . . . . . . . . . . . . . . . . . . . Machines Sabotaged . | . . . . . . . . . . . . . . . . . . . . . . Overloaded Fab Kills . | . . . . . . . . . . . . . . . . . . . . . . Hacking | -11 -10 -10 -9 -9 -9 -8 -8 -7 -7 -7 -6 -6 -5 -4 -4 -4 -4 -3 -2 -2 -1 --------- Run | Yrd Mat Min Mat Min Exi Min Mat Fac Gar Fac Fac Gar Fac Fac Gar Fac DSF Res Res Gar Acc Machines Accessed 49 | . 2 2 2 . . . 7 4 3 6 7 1 3 1 2 1 . 1 2 . 5 Terminals 38 | . 2 . 2 . . . 7 2 3 4 5 1 2 . 2 1 . 1 1 . 5 Fabricators 1 | . . . . . . . . . . . . . 1 . . . . . . . . Repair Stations 2 | . . . . . . . . 1 . . 1 . . . . . . . . . . Recycling Units . | . . . . . . . . . . . . . . . . . . . . . . Scanalyzers . | . . . . . . . . . . . . . . . . . . . . . . Garrison Access 6 | . . . . . . . . 1 . 2 1 . . 1 . . . . 1 . . Total Hacks 104 | . 9 2 7 . . . 17 9 6 11 12 2 7 2 4 1 . 2 5 . 8 Successful 48 | . 5 2 5 . . . 6 7 1 5 4 . 2 2 1 1 . 1 3 . 3 Failed 55 | . 3 . 2 . . . 11 2 5 6 8 2 5 . 3 . . 1 2 . 5 Catastrophic 6 | . . . . . . . . . 1 . 3 . . . 1 . . . . . 1 Database Lockouts 1 | . 1 . . . . . . . . . . . . . . . . . . . . Manual 42 | . 4 . 3 . 1 . 8 3 . 6 2 . 3 1 . . . 2 3 . 6 Terminals 84 | . 9 . 7 . . . 17 5 6 7 8 2 4 . 4 1 . 2 4 . 8 Fabricators 3 | . . . . . . . . . . . . . 3 . . . . . . . . Repair Stations 6 | . . . . . . . . 3 . . 3 . . . . . . . . . . Recycling Units . | . . . . . . . . . . . . . . . . . . . . . . Scanalyzers . | . . . . . . . . . . . . . . . . . . . . . . Garrison Access 9 | . . . . . . . . 1 . 4 1 . . 2 . . . . 1 . . Terminal Hacks 30 | . 4 2 4 . . . 4 3 1 3 1 . 1 . 1 1 . . 2 . 3 Record 3 | . . . . . . . . . . . . . 1 . . . . . 2 . . Prototype ID Bank 8 | . 3 . 1 . . . 1 1 . 1 1 . . . . . . . . . . Open Door 4 | . . 2 . . . . . . . . . . . . . . . . . . 2 Open DSF 1 | . . . . . . . . . . . . . . . . 1 . . . . . Emergency Access Points 1 | . . . . . . . . . . . . . . . 1 . . . . . . Terminal Index 1 | . . . . . . . . . . 1 . . . . . . . . . . . Garrison Index 1 | . . . . . . . . 1 . . . . . . . . . . . . . Alert Level 4 | . . . 1 . . . 1 1 . 1 . . . . . . . . . . . Unreport Threat 3 | . . . . . . . 2 . . . . . . . . . . . . . 1 Locate Traps 1 | . 1 . . . . . . . . . . . . . . . . . . . . Recall Investigation 1 | . . . 1 . . . . . . . . . . . . . . . . . . Registered Components 1 | . . . 1 . . . . . . . . . . . . . . . . . . Garrison Registry 1 | . . . . . . . . . 1 . . . . . . . . . . . . Fabricator Hacks . | . . . . . . . . . . . . . . . . . . . . . . Repair Station Hacks 3 | . . . . . . . . 2 . . 1 . . . . . . . . . . Scan Component 2 | . . . . . . . . 1 . . 1 . . . . . . . . . . Repair 1 | . . . . . . . . 1 . . . . . . . . . . . . . Recycling Unit Hacks . | . . . . . . . . . . . . . . . . . . . . . . Scanalyzer . | . . . . . . . . . . . . . . . . . . . . . . Garrison Access Hacks 5 | . . . . . . . . 1 . 1 1 . . 1 . . . . 1 . . Unlock Access 4 | . . . . . . . . 1 . . 1 . . 1 . . . . 1 . . Seal Access 1 | . . . . . . . . . . 1 . . . . . . . . . . . Unauthorized Hacks 10 | . 1 . 1 . . . 2 1 . 1 1 . 1 1 . . . 1 . . . Terminals 8 | . 1 . 1 . . . 2 1 . . 1 . 1 . . . . 1 . . . Assimilate 2 | . . . . . . . 2 . . . . . . . . . . . . . . Operators 6 | . 1 . 1 . . . . 1 . . 1 . 1 . . . . 1 . . . Fabricators . | . . . . . . . . . . . . . . . . . . . . . . Repair Stations . | . . . . . . . . . . . . . . . . . . . . . . Recycling Units . | . . . . . . . . . . . . . . . . . . . . . . Scanalyzers . | . . . . . . . . . . . . . . . . . . . . . . Garrison Access 2 | . . . . . . . . . . 1 . . . 1 . . . . . . . Reprogram 2 | . . . . . . . . . . 1 . . . 1 . . . . . . . Data Cores Recovered 1 | . . . . . . . 1 . . . . . . . . . . . . . . Used 1 | . . . . . . . 1 . . . . . . . . . . . . . . Hacking Detections 34 | . 1 . 1 . . . 6 2 2 5 5 1 3 . 1 . . 1 1 . 5 Full Trace Events 7 | . . . . . . . . . 2 1 1 1 . . . . . . 1 . 1 Feedback Events . | . . . . . . . . . . . . . . . . . . . . . . Feedback Blocked . | . . . . . . . . . . . . . . . . . . . . . . Robot Schematics Acquired . | . . . . . . . . . . . . . . . . . . . . . . Robots Built . | . . . . . . . . . . . . . . . . . . . . . . Authchips . | . . . . . . . . . . . . . . . . . . . . . . Time . | . . . . . . . . . . . . . . . . . . . . . . Total Robot Build Rating . | . . . . . . . . . . . . . . . . . . . . . . Part Schematics Acquired . | . . . . . . . . . . . . . . . . . . . . . . Parts Built . | . . . . . . . . . . . . . . . . . . . . . . Authchips . | . . . . . . . . . . . . . . . . . . . . . . Time . | . . . . . . . . . . . . . . . . . . . . . . Total Part Build Rating . | . . . . . . . . . . . . . . . . . . . . . . Parts Repaired 1 | . . . . . . . . 1 . . . . . . . . . . . . . Time 38 | . . . . . . . . 38 . . . . . . . . . . . . . Parts Recycled . | . . . . . . . . . . . . . . . . . . . . . . Recycled Matter . | . . . . . . . . . . . . . . . . . . . . . . Retrieved Matter . | . . . . . . . . . . . . . . . . . . . . . . Retrieved Components . | . . . . . . . . . . . . . . . . . . . . . . Parts Scanalyzed . | . . . . . . . . . . . . . . . . . . . . . . Part Schematics Acquired . | . . . . . . . . . . . . . . . . . . . . . . Parts Damaged . | . . . . . . . . . . . . . . . . . . . . . . Bothacking | -11 -10 -10 -9 -9 -9 -8 -8 -7 -7 -7 -6 -6 -5 -4 -4 -4 -4 -3 -2 -2 -1 ------------ Run | Yrd Mat Min Mat Min Exi Min Mat Fac Gar Fac Fac Gar Fac Fac Gar Fac DSF Res Res Gar Acc Used RIF Installer 5 | . . . . . . . . . 1 . . 1 . . 2 . . . . 1 . Command Fork 1 | . . . . . . . . . . . . . . . 1 . . . . . . Threat Obfuscator 2 | . . . . . . . . . . . . 1 . . . . . . . 1 . Program Shield 1 | . . . . . . . . . . . . . . . 1 . . . . . . Robots Hacked 23 | . . . . . . . . . . 7 4 2 4 . 1 . . 1 4 . . Non-combat 3 | . . . . . . . . . . 1 1 . . . . . . 1 . . . Combat 20 | . . . . . . . . . . 6 3 2 4 . 1 . . . 4 . . Robot Hacks Applied 28 | . . . . . . . . . . 10 4 2 4 . 1 . . 3 4 . . parse_system 1 | . . . . . . . . . . 1 . . . . . . . . . . . ignore_parts 1 | . . . . . . . . . . . 1 . . . . . . . . . . purge_threat 6 | . . . . . . . . . . 4 . . . . . . . 2 . . . reboot_system 1 | . . . . . . . . . . . . . . . . . . . 1 . . overwrite_iff 11 | . . . . . . . . . . 5 . 1 3 . 1 . . . 1 . . formatsys_low 1 | . . . . . . . . . . . . . . . . . . 1 . . . formatsys_high 7 | . . . . . . . . . . . 3 1 1 . . . . . 2 . . Relay Couplers Released 43 | . . . . . . . . . 20 . . 10 . . 9 . . 4 . . . Machine Destruction 39 | . . . . . . . . . 20 . . 10 . . 9 . . . . . . Programmers 4 | . . . . . . . . . . . . . . . . . . 4 . . . Attached 12 | . . . . . . . . . . 2 2 . 2 1 . . . 1 2 . 2 Fabnet Peak Effective % . | . . . . . . . . . . . . . . . . . . . . . . Robots Rewired 13 | . . . . . . . . . 3 . . 3 . . 7 . . . . . . Allies Hacked . | . . . . . . . . . . . . . . . . . . . . . . Hacks Repelled . | . . . . . . . . . . . . . . . . . . . . . . Allies | -11 -10 -10 -9 -9 -9 -8 -8 -7 -7 -7 -6 -6 -5 -4 -4 -4 -4 -3 -2 -2 -1 -------- Run | Yrd Mat Min Mat Min Exi Min Mat Fac Gar Fac Fac Gar Fac Fac Gar Fac DSF Res Res Gar Acc Total Allies 39 | . . 3 . 2 . . 1 . 3 5 3 5 4 . 8 . . 1 4 . . Largest Group 5 | . . 3 2 2 2 . 1 1 3 2 2 5 2 . 4 4 4 4 3 . . Highest-Rated Group 352 | . . 40 24 38 38 . 10 10 90 45 82 178 169 . 352 352 352 242 167 . . Highest-Rated Ally 148 | . . 16 16 31 31 . 10 10 30 29 41 41 137 . 148 148 148 68 64 . . Total Orders 8 | . . . . . . . . . 4 . . . 4 . . . . . . . . STAY 1 | . . . . . . . . . 1 . . . . . . . . . . . . FOLLOW 2 | . . . . . . . . . 1 . . . 1 . . . . . . . . GUARD 1 | . . . . . . . . . . . . . 1 . . . . . . . . EXPLORE 4 | . . . . . . . . . 2 . . . 2 . . . . . . . . Ally Attacks 200 | . . . 44 5 . . . . 4 14 9 33 27 . 22 . 23 3 16 . . Total Damage 6355 | . . . 439 42 . . . . 221 227 192 1364 824 . 587 . 1701 243 515 . . Kills 40 | . . . 7 1 . . . . 2 . 2 12 3 . 5 . 7 . 1 . . Allies Corrupted 2 | . . . . . . . . . . . . . . . . . . 1 1 . . Allies Melted 1 | . . . 1 . . . . . . . . . . . . . . . . . . Intel | -11 -10 -10 -9 -9 -9 -8 -8 -7 -7 -7 -6 -6 -5 -4 -4 -4 -4 -3 -2 -2 -1 ------- Run | Yrd Mat Min Mat Min Exi Min Mat Fac Gar Fac Fac Gar Fac Fac Gar Fac DSF Res Res Gar Acc Robot Analysis Total . | . . . . . . . . . . . . . . . . . . . . . . Derelict Logs Recovered 3 | . . 2 . 1 . . . . . . . . . . . . . . . . . Drone Launches 4 | . . . . . . . . . 2 . . . 2 . . . . . . . . Drone Recoveries 2 | . . . . . . . . . 2 . . . . . . . . . . . . Exploration | -11 -10 -10 -9 -9 -9 -8 -8 -7 -7 -7 -6 -6 -5 -4 -4 -4 -4 -3 -2 -2 -1 ------------- Run | Yrd Mat Min Mat Min Exi Min Mat Fac Gar Fac Fac Gar Fac Fac Gar Fac DSF Res Res Gar Acc Turns Passed 19810 | 82 1139 720 539 635 347 269 1492 509 2102 1234 2291 1273 1106 325 1618 97 207 1609 1560 156 500 Spaces Moved 10831 | 49 582 427 278 317 216 168 632 306 1325 772 1352 659 517 174 818 58 100 736 508 141 696 Core 581 | 12 . . . . . . . . . . . . . . . . . . . 40 529 Treads 5223 | 37 582 427 278 317 216 168 159 . . . . 352 517 174 818 58 100 736 284 . . Legs 4860 | . . . . . . . 473 306 1325 772 1352 307 . . . . . . 224 101 . Wheels . | . . . . . . . . . . . . . . . . . . . . . . Hover . | . . . . . . . . . . . . . . . . . . . . . . Flight 167 | . . . . . . . . . . . . . . . . . . . . . 167 Fastest Speed 40 | 50 160 160 160 160 160 160 160 122 125 125 122 130 158 161 158 158 155 160 110 50 40 Average Speed 141 | 133 160 160 160 160 160 160 182 137 126 125 131 145 160 161 161 158 158 163 142 98 48 Slowest Speed 250 | 160 160 160 160 160 160 160 193 192 127 125 195 250 161 161 237 158 160 165 245 120 250 Overloaded Moves . | . . . . . . . . . . . . . . . . . . . . . . Propulsion Burnouts . | . . . . . . . . . . . . . . . . . . . . . . Robots Hopped 2 | . . . . . . . . . . . . . . . . . . . . . 2 Cave-ins Triggered . | . . . . . . . . . . . . . . . . . . . . . . Exploration Rate (%) 40 | 4 87 68 30 60 62 75 42 11 89 24 25 41 14 4 79 3 88 17 11 44 20 Regions Visited 21 Branch Regions 4 Pre-discovered Areas 1 | . . . . 1 . . . . . . . . . . . . . . . . . Known Exits Taken 9 | . . . 1 . . 1 . 1 . . 1 . 1 1 . 1 . 1 1 . . Unknown Exits Taken 7 | 1 1 1 . 1 1 . 1 . . 1 . . . . . . . . . . . Scrap Searched 4 | . . 1 . 1 . 2 . . . . . . . . . . . . . . . Spaces Dug 2 | . . . . . . . . . . . . . . . 2 . . . . . . Terrain Destroyed 344 | . . . . 36 . . 39 . 3 4 15 8 67 19 71 . 1 37 43 . 1 Melee . | . . . . . . . . . . . . . . . . . . . . . . Projectile 190 | . . . . 11 . . 20 . 3 4 5 8 36 4 17 . 1 37 43 . 1 AOE 154 | . . . . 25 . . 19 . . . 10 . 31 15 54 . . . . . . Terrain Rammed . | . . . . . . . . . . . . . . . . . . . . . . Walls Destroyed . | . . . . . . . . . . . . . . . . . . . . . . Machines Disabled . | . . . . . . . . . . . . . . . . . . . . . . Actions | -11 -10 -10 -9 -9 -9 -8 -8 -7 -7 -7 -6 -6 -5 -4 -4 -4 -4 -3 -2 -2 -1 --------- Run | Yrd Mat Min Mat Min Exi Min Mat Fac Gar Fac Fac Gar Fac Fac Gar Fac DSF Res Res Gar Acc Total 14127 | 65 676 456 336 413 219 168 824 398 1621 935 1770 900 734 206 1006 63 150 1024 1167 147 849 Wait 1750 | . 18 7 17 67 . . 81 71 116 59 256 106 151 11 37 6 11 177 441 . 118 Move 10810 | 48 581 426 277 316 215 167 631 306 1324 771 1352 658 516 174 817 57 99 735 508 140 692 Hop 2 | . . . . . . . . . . . . . . . . . . . . . 2 Pick Up 276 | 9 12 4 10 4 1 1 16 8 29 15 38 14 10 5 16 . 13 20 43 . 8 Fast Attach . | . . . . . . . . . . . . . . . . . . . . . . Attach 207 | 6 3 6 4 2 1 . 15 8 9 9 24 7 12 5 10 . 8 17 50 . 11 Detach 14 | . . 2 1 1 1 . 1 . . . 2 . . . 2 . . 2 1 . 1 Swap 42 | . 1 . 1 1 . . 1 . 2 5 10 4 5 . 2 . 1 2 7 . . Drop 200 | . 3 4 4 3 1 . 8 5 28 11 37 14 8 5 11 . 14 17 22 2 3 Fire 685 | . 57 5 22 18 . . 71 . 85 64 51 48 32 6 66 . 2 52 93 5 8 Melee . | . . . . . . . . . . . . . . . . . . . . . . Ram 6 | . . . . . . . . . . . . . . . . . . . . . 6 Kick 3 | . . . . . . . . . . 1 . . . . . . . . 2 . . Crush 8 | 2 1 2 . 1 . . . . . . . . . . . . . 2 . . . Escape Stasis 27 | . . . . . . . . . 17 . . 10 . . . . . . . . . Rewire 93 | . . . . . . . . . 7 . . 39 . . 45 . 2 . . . . Trap 4 | . . . . . . . . . 4 . . . . . . . . . . . . Miscellaneous . | . . . . . . . . . . . . . . . . . . . . . . Route ------- -11/Scrapyard -10/Materials (discovered 3 exits: *Mat x2 / *Min) -10/Mines (discovered 2 exits: *Mat x2) -9/Materials (discovered 4 exits: *Mat x2 / *Min / [*Sto]) -9/Mines -9/Exiles -8/Mines -8/Materials -7/Factory -7/Garrison (discovered 3 exits: *Fac x3) -7/Factory -6/Factory (discovered 2 exits: *Fac / Gar) -6/Garrison -5/Factory (discovered 2 exits: *Fac / *Ext) -4/Factory -4/Garrison (discovered 4 exits: *Res x3 / *Fac) -4/Factory -4/DSF -3/Research -2/Research -2/Garrison -1/Access History --------- Turn | Location | Event 16 | -11/Scrapyard | Discovered new exit (range 16) 83 | -11/Scrapyard | Entered Materials 273 | -10/Materials | Discovered new exit (range 9) 301 | -10/Materials | Build established: Mutant 426 | -10/Materials | Central database locked down 439 | -10/Materials | Discovered new exit (range 13) 720 | -10/Materials | Discovered new exit (range 11) 1222 | -10/Materials | Entered Mines 1479 | -10/Mines | Assisted by bots powering up and referring to "LRC-V3" 1604 | -10/Mines | Found a damaged Exp. Sensor Array with a note attached 1607 | -10/Mines | Found Prototype Device 1651 | -10/Mines | Found the Drone Emporium 1659 | -10/Mines | Found Prototype Device 1667 | -10/Mines | Identified Sensor Drone Bay 1669 | -10/Mines | Identified Exp. Sensor Array 1768 | -10/Mines | Learned 2 Materials zone layouts 1882 | -10/Mines | Discovered new exit (range 10) 1890 | -10/Mines | Discovered new exit (range 10) 1916 | -10/Mines | Met a Derelict who couldn't figure out how to use a Trap Extractor 1942 | -10/Mines | Entered Materials 1942 | -9/Materials | Accompanied by 2 allies 1942 | -9/Materials | Evolved 2 slots: Propulsion x1, Utility x1 1943 | -9/Materials | Identified exit to Mines 1943 | -9/Materials | Identified exit to Materials 2229 | -9/Materials | Build established: Scavenger-Mutant 2274 | -9/Materials | Discovered new exit (range 4) 2310 | -9/Materials | Discovered exit to Materials (range 7) 2481 | -9/Materials | Entered Mines 2567 | -9/Mines | Learned Materials terminal intel 2881 | -9/Mines | Learned location of Storage (-9) 3014 | -9/Mines | Build established: Mutant 3069 | -9/Mines | Deemed a non-threat by the Exiles lab entrance 3071 | -9/Mines | Discovered new exit (range 5) 3116 | -9/Mines | Entered Exiles 3116 | -9/Exiles | Accompanied by 2 allies 3146 | -9/Exiles | Led the pair of lost Derelicts to a safe place 3155 | -9/Exiles | Met 8R-AWN 3182 | -9/Exiles | Met EX-HEX 3227 | -9/Exiles | Met EX-BIN 3251 | -9/Exiles | Aligned with FarCom system 3252 | -9/Exiles | Given EX-Vault access code 3291 | -9/Exiles | Opened EX-Vault 3299 | -9/Exiles | Found Prototype Device 3300 | -9/Exiles | Identified Cloak of Protection 3335 | -9/Exiles | Warned to stay clear of 0b10 Research branches 3390 | -9/Exiles | Met EX-DEC 3447 | -9/Exiles | Discovered new exit (range 11) 3463 | -9/Exiles | Left Exiles lab with Cloak of Protection 3463 | -9/Exiles | Entered Mines 3722 | -8/Mines | Discovered exit to Materials (range 7) 3732 | -8/Mines | Entered Materials 3732 | -8/Materials | Evolved 2 slots: Utility x1, Weapon x1 3733 | -8/Materials | Loaded intel: 11 terminal locations 4036 | -8/Materials | Build established: Skirmisher 4823 | -8/Materials | Discovered new exit (range 15) 5075 | -8/Materials | Build established: Tank 5224 | -8/Materials | Entered Factory 5224 | -7/Factory | Accompanied by 1 ally 5224 | -7/Factory | Evolved 2 slots: Propulsion x1, Utility x1 5471 | -7/Factory | Repaired Imp. Light Armor Plating 5731 | -7/Factory | Identified exit to Garrison 5733 | -7/Factory | Entered Garrison 5733 | -7/Garrison | Accompanied by 1 ally 5872 | -7/Garrison | Garrison Relay disabled 5903 | -7/Garrison | Triggered checkpoint 6117 | -7/Garrison | Garrison Relay disabled 6147 | -7/Garrison | Discovered new exit (range 14) 6375 | -7/Garrison | Triggered checkpoint 6565 | -7/Garrison | Discovered new exit (range 10) 6631 | -7/Garrison | Triggered checkpoint 6645 | -7/Garrison | Triggered checkpoint 6676 | -7/Garrison | Garrison Relay disabled 6880 | -7/Garrison | Garrison Relay disabled 7016 | -7/Garrison | Discovered new exit (range 13) 7127 | -7/Garrison | Triggered checkpoint 7167 | -7/Garrison | Garrison Relay disabled 7293 | -7/Garrison | Discovered new exit (range 71) 7293 | -7/Garrison | Discovered new exit (range 19) 7293 | -7/Garrison | Discovered new exit (range 37) 7529 | -7/Garrison | Installed Relay Interface Framework 7693 | -7/Garrison | P-60 Hacker assimilated allied Fighter 4a 7695 | -7/Garrison | P-60 Hacker assimilated allied Fighter 4b 7703 | -7/Garrison | P-60 Hacker assimilated allied Fighter 4c 7835 | -7/Garrison | Entered Factory 8028 | -7/Factory | Build established: Bothacker-Skirmisher 8235 | -7/Factory | First assault squad dispatched 8433 | -7/Factory | Lost 3 allies 8971 | -7/Factory | Discovered new exit (range 9) 9069 | -7/Factory | Entered another Factory area 9069 | -6/Factory | Evolved 2 slots: Power x1, Utility x1 9459 | -6/Factory | Spotted B-75 Beast 9488 | -6/Factory | Destroyed B-75 Beast 9559 | -6/Factory | Build established: Bothacker-Tank 10241 | -6/Factory | Build established: Bothacker-Skirmisher 11309 | -6/Factory | Discovered new exit (range 13) 11324 | -6/Factory | Identified exit to Factory 11359 | -6/Factory | Identified exit to Garrison 11360 | -6/Factory | Entered Garrison 11360 | -6/Garrison | Accompanied by 2 allies 11576 | -6/Garrison | Triggered checkpoint 11604 | -6/Garrison | Triggered checkpoint 11609 | -6/Garrison | Garrison Relay disabled 11880 | -6/Garrison | Spotted B-75 Beast 11910 | -6/Garrison | Allies destroyed B-75 Beast 12265 | -6/Garrison | Build established: Bothacker-Tank 12485 | -6/Garrison | Garrison Relay disabled 12578 | -6/Garrison | Expanded RIF knowledge: Threat Obfuscation 12616 | -6/Garrison | Discovered exit to Factory (range 11) 12633 | -6/Garrison | Entered Factory 12633 | -5/Factory | Accompanied by 1 ally 12633 | -5/Factory | Evolved 2 slots: Utility x1, Weapon x1 12823 | -5/Factory | Discovered new exit (range 27) 13124 | -5/Factory | Identified exit to Extension 13505 | -5/Factory | Lost 3 allies 13713 | -5/Factory | Discovered new exit (range 12) 13731 | -5/Factory | Identified exit to Factory 13739 | -5/Factory | Entered another Factory area 13739 | -4/Factory | Evolved 2 slots: Utility x2 14064 | -4/Factory | Identified exit to Garrison 14064 | -4/Factory | Entered Garrison 14164 | -4/Garrison | Triggered checkpoint 14210 | -4/Garrison | Triggered checkpoint 14220 | -4/Garrison | Garrison Relay disabled 14441 | -4/Garrison | Triggered checkpoint 14441 | -4/Garrison | Triggered checkpoint 14448 | -4/Garrison | Spotted B-86 Titan 14456 | -4/Garrison | Triggered checkpoint 14482 | -4/Garrison | Destroyed B-86 Titan 14498 | -4/Garrison | Lost 3 allies 14522 | -4/Garrison | Destroyed 11 combat bots 14738 | -4/Garrison | Expanded RIF knowledge: Program Shield 14801 | -4/Garrison | Discovered new exit (range 5) 15048 | -4/Garrison | Expanded RIF knowledge: Command Fork 15080 | -4/Garrison | Discovered new exit (range 3) 15083 | -4/Garrison | Identified exit to Research 15365 | -4/Garrison | Discovered exit to Research (range 10) 15422 | -4/Garrison | Rewired B-90 Cyclops 15492 | -4/Garrison | Triggered checkpoint 15523 | -4/Garrison | Garrison Relay disabled 15594 | -4/Garrison | Triggered checkpoint 15624 | -4/Garrison | Discovered new exit (range 6) 15631 | -4/Garrison | Identified exit to Factory 15682 | -4/Garrison | Entered Factory 15682 | -4/Factory | Accompanied by 4 allies 15773 | -4/Factory | Identified exit to DSF 15779 | -4/Factory | Entered DSF 15779 | -4/DSF | Accompanied by 4 allies 15825 | -4/DSF | Additional patrols routed to DSF 15927 | -4/DSF | Discovered exit to Research (range 13) 15966 | -4/DSF | Sterilization system engaged 15986 | -4/DSF | Ambient heat levels rising (+10) 15986 | -4/DSF | Entered Research 15986 | -3/Research | Accompanied by 3 allies 15986 | -3/Research | Evolved 2 slots: Utility x2 16213 | -3/Research | Lost 3 allies 16253 | -3/Research | Spotted B-86 Titan 16272 | -3/Research | Destroyed B-86 Titan 16358 | -3/Research | Garrison activated, responded to threat 16904 | -3/Research | Found Prototype Processor 16910 | -3/Research | Identified Exp. Melee Analysis Suite 17194 | -3/Research | Build established: Bothacker-Gunner 17450 | -3/Research | Discovered new exit (range 5) 17457 | -3/Research | Identified exit to Research 17595 | -3/Research | Entered another Research area 17595 | -2/Research | Evolved 2 slots: Utility x2 18433 | -2/Research | Lost 5 parts (2p1n1u1w) 18939 | -2/Research | Garrison activated, responded to threat 18951 | -2/Research | System corruption reached 10% 19058 | -2/Research | Lost 15 parts (2p2n3u8w) 19146 | -2/Research | Spotted B-90 Cyclops 19147 | -2/Research | Lost 3 allies 19155 | -2/Research | Identified exit to Garrison 19155 | -2/Research | Entered Garrison 19165 | -2/Garrison | Phase Generator disabled 19174 | -2/Garrison | Expanded RIF knowledge: Threat Obfuscation 19257 | -2/Garrison | Triggered checkpoint 19282 | -2/Garrison | Spotted B-90 Cyclops 19291 | -2/Garrison | Core integrity fell below 50% 19293 | -2/Garrison | Triggered checkpoint 19295 | -2/Garrison | Core integrity fell below 20% 19309 | -2/Garrison | Discovered new exit (range 5) 19311 | -2/Garrison | Entered Access 19311 | -1/Access | Evolved 2 slots: Utility x2 19323 | -1/Access | Lost 15 parts (2p4n5u4w) 19690 | -1/Access | System corruption reached 10% 19721 | -1/Access | Build established: Mutant 19736 | -1/Access | Core integrity fell below 50% 19765 | -1/Access | Spotted B-99 Colossus 19781 | -1/Access | Core integrity fell below 20% 19782 | -1/Access | Lost 4 parts (1p2u1w) 19811 | -1/Access | Destroyed by B-99 Colossus with Linear Accelerator Last Messages --------------- 19772_ Acquired 3 matter. 19772_ O-32 Director: "IFF HANDSHAKE FAILED. SECURING TERMINAL." 19775_ Penetrated by Slug. 19775_ Slug penetrates Wall. 19775_ Slug penetrates P-80 Master. 19775_ Penetrated by Slug. 19775_ O-32 Director uses terminal to summon reinforcements. 19775_ ALERT: Hostiles spotted, dispatching reinforcements to Terminal A007. 19775_ O-32 Director locks terminal. 19780_ Penetrated by Slug. 19780_ Slug penetrates Wall. 19782_ System corrupted: Energy discharge (-32). 19782_ Slug penetrates Wall. 19799_ System corrupted: IFF burst signal emitted. 19807_ Penetrated by Slug. 19807_ Slug penetrates Wall. Map ----- +----------------------------------------------------+ | | | | | | | | | | | | | | | | | | | | | | | | | | | | | | | | | | | | | | | ?????????????????????????????????????????????????? | | ?????????????????????????????????????????????????? | | ????????????????????????####?????????????????????? | | ????????????????#######?# #?????????????????????? | | ????????????????# ### #######???????????????? | | ????????????##### "T % ;################# | | ???##+#?????# "" @ | | ???? ????# ### ##### ########### | | ????? ##### #?# # "#???# #?????????# | | ???????! #?### ### ""#???# #?????????# | | ????????# #####/### BB ""#??##+########??# | | ????????# + #**% BB ""#??# #??# | | ????????# # / #** ""#??# #??# | | ????????# # ! # T"#??#[ " =#??# | | ????????# + *# ""#??# h """ #?##+ | | ????????# # # ""#??# h""" #?# | | ????????# # # ""#??# " #?# | | ????????# ######## ! ""#??# ???# | | ????????# ##+#??????# o"#???? ?????# | | ????????# ##?????????# % #######+####+### | | ????????# #???????#### h # | | ????????# #?? / ! + | | "???????# #???????####+##### # | | ## #?????????! #??###########+#####+## | | / #????????# #????????????????? # | | ??######## #????????#!! #??????????????? # | | ?????????# #????????#!! =#????????????? " ! # | | ?????????# #????????#! #????????????# """ ### | | ?????????# #????????# #????????????# """ !#?? | | ?????#####/####?????# #????????????# " #?? | | ###### #?????# #????????????# ! #?? | +----------------------------------------------------+ Best States ------------- Heat Dissipation 118 Coolant Potential 65 Energy Generation 45 Energy Capacity 600 Matter Stores 300 Matter Capacity 300 Sight Range 16 Robot Scan Range 20 Terrain Scan Density 10 Additional Mass Support 16 Base Temperature (-) 200 Armor Coverage 1200 Propulsion Shielding 33 Evasion (%) 62 Target Analysis 12 Core Analysis 6 Recoil Reduction 4 Matter Filtering 30 Kinecelleration 40 Offensive Hacking 14 Defensive Hacking 14 Relay Coupler Types 2 Relay Coupler Value 84 Item Schematics ----------------- None Robot Schematics ------------------ None Fabricated ------------ Nothing Alien Tech Used ----------------- None Achievements -------------- Denied? Challenges ------------ None Game ------ Seed VortexArmorMapper Manual? 0 Play Time 02:54:16 Cumulative 80.6 hours Start 2024.04.17 @ 16:27:23 End 2024.04.17 @ 19:38:03 Sessions 3 Manual Loads 0 Difficulty Rogue Special Mode None Game No. 73 Rogue 73 Adventurer 0 Explorer 0 Win Type - Total 0 Types 0/0/0/0/0/0/0/0/0 Lore% 42 Gallery% 53 Achievement% 32 Wizard Run 0 Options --------- Layout 1 ASCII 0 Keyboard 0 Movement Numpad Keybinds 0 Fullscreen 1 Font 24/Smallcaps Map View 50x35 Zoom Use 0% Tactical HUD 1 Map Filters NONE Filters NONE Steam 1 RUN: 9801ac37-e737-4850-bbcd-d68e72510e9c